[Event "Titled Tuesday Blitz February 28 Early 2023"]
[White "Schut, Han"]
[Black "Sanchez, Robert"]
[WhiteFideId "1005561"]
[BlackFideId "2034360"]
[WhiteElo "2024"]
[BlackElo "2452"]
[Result "1-0"]
[Round "02"]
[TimeControl "180+2"]
[Date "2023.02.28"]
[WhiteClock "0:00:07"]
[BlackClock "0:00:07"]

1. e4 {[%clk 0:03:00]}  Nc6 {[%clk 0:02:57]} 2. Nf3 {[%clk 0:03:00]}  d6 {[%clk 0:02:56]} 3. d4 {[%clk 0:02:58]}  Nf6 {[%clk 0:02:56]} 4. Nc3 {[%clk 0:02:58]}  d5 {[%clk 0:02:56]} 5. exd5 {[%clk 0:02:50]}  Nxd5 {[%clk 0:02:57]} 6. Nxd5 {[%clk 0:02:51]}  Qxd5 {[%clk 0:02:57]} 7. c4 {[%clk 0:02:51]}  Qd6 {[%clk 0:02:55]} 8. Be2 {[%clk 0:02:34]}  Bg4 {[%clk 0:02:55]} 9. O-O {[%clk 0:02:23]}  O-O-O {[%clk 0:02:53]} 10. d5 {[%clk 0:02:15]}  Bxf3 {[%clk 0:02:52]} 11. Bxf3 {[%clk 0:02:14]}  Ne5 {[%clk 0:02:52]} 12. Be2 {[%clk 0:02:08]}  e6 {[%clk 0:02:48]} 13. dxe6 {[%clk 0:02:03]}  Qxe6 {[%clk 0:02:47]} 14. Qc2 {[%clk 0:02:01]}  Bc5 {[%clk 0:02:38]} 15. Bf4 {[%clk 0:01:49]}  Ng6 {[%clk 0:02:26]} 16. Bg3 {[%clk 0:01:47]}  h5 {[%clk 0:02:23]} 17. Bd3 {[%clk 0:01:30]}  h4 {[%clk 0:01:50]} 18. Bf5 {[%clk 0:01:27]}  hxg3 {[%clk 0:01:50]} 19. hxg3 {[%clk 0:01:23]}  Rh6 {[%clk 0:01:39]} 20. Bxe6+ {[%clk 0:00:57]}  fxe6 {[%clk 0:01:39]} 21. Qe4 {[%clk 0:00:54]}  Rdh8 {[%clk 0:01:33]} 22. Qxe6+ {[%clk 0:00:55]}  Kb8 {[%clk 0:01:33]} 23. Qh3 {[%clk 0:00:55]}  Rxh3 {[%clk 0:01:33]} 24. gxh3 {[%clk 0:00:56]}  Ne5 {[%clk 0:01:29]} 25. Kg2 {[%clk 0:00:54]}  g5 {[%clk 0:01:25]} 26. b3 {[%clk 0:00:33]}  Rf8 {[%clk 0:01:17]} 27. Rad1 {[%clk 0:00:26]}  c6 {[%clk 0:01:03]} 28. f4 {[%clk 0:00:19]}  gxf4 {[%clk 0:01:00]} 29. Rxf4 {[%clk 0:00:18]}  Re8 {[%clk 0:00:18]} 30. Re1 {[%clk 0:00:14]}  Bb6 {[%clk 0:00:18]} 31. Rfe4 {[%clk 0:00:13]}  Bc7 {[%clk 0:00:18]} 32. g4 {[%clk 0:00:13]}  a5 {[%clk 0:00:18]} 33. a3 {[%clk 0:00:13]}  Kc8 {[%clk 0:00:17]} 34. h4 {[%clk 0:00:13]}  Kd7 {[%clk 0:00:17]} 35. g5 {[%clk 0:00:14]}  c5 {[%clk 0:00:15]} 36. h5 {[%clk 0:00:13]}  Bd6 {[%clk 0:00:14]} 37. g6 {[%clk 0:00:13]}  Re6 {[%clk 0:00:14]} 38. g7 {[%clk 0:00:13]}  Re8 {[%clk 0:00:13]} 39. h6 {[%clk 0:00:14]}  Rg8 {[%clk 0:00:12]} 40. Kh3 {[%clk 0:00:09]}  Nf3 {[%clk 0:00:11]} 41. Rh4 {[%clk 0:00:05]}  Nxh4 {[%clk 0:00:08]} 42. Kxh4 {[%clk 0:00:06]}  Bf4 {[%clk 0:00:08]} 43. Kh5 {[%clk 0:00:06]}  Bxh6 {[%clk 0:00:07]} 44. Kxh6 {[%clk 0:00:07]}  b5 {[%clk 0:00:07]} 45. Kh7 {[%clk 0:00:08]}  Rxg7+ {[%clk 0:00:08]} 46. Kxg7 {[%clk 0:00:08]}  a4 {[%clk 0:00:07]} 47. bxa4 {[%clk 0:00:07]}  bxc4 {[%clk 0:00:07]} 48. Rc1 {[%clk 0:00:07]} 1-0


[Site "https://www.chess.com"]

[Event "Titled Tuesday Blitz February 28 Early 2023"]
[White "Abdilkhair, Abilmansur"]
[Black "Cueto, Jonny"]
[WhiteFideId "13716417"]
[BlackFideId "3300145"]
[WhiteElo "2216"]
[BlackElo "2212"]
[Result "1-0"]
[Round "02"]
[TimeControl "180+2"]
[Date "2023.02.28"]
[WhiteClock "0:00:09"]
[BlackClock "0:00:03"]

1. d4 {[%clk 0:03:00]}  e6 {[%clk 0:01:19]} 2. c4 {[%clk 0:03:01]}  Nf6 {[%clk 0:01:19]} 3. Nc3 {[%clk 0:03:00]}  b6 {[%clk 0:01:19]} 4. e4 {[%clk 0:02:59]}  Bb7 {[%clk 0:01:19]} 5. f3 {[%clk 0:02:58]}  Ng8 {[%clk 0:01:19]} 6. Be3 {[%clk 0:02:57]}  c5 {[%clk 0:01:19]} 7. Nge2 {[%clk 0:02:53]}  cxd4 {[%clk 0:01:18]} 8. Nxd4 {[%clk 0:02:54]}  Bc5 {[%clk 0:01:17]} 9. Qd2 {[%clk 0:02:51]}  Ne7 {[%clk 0:01:13]} 10. Ndb5 {[%clk 0:02:17]}  Bxe3 {[%clk 0:01:12]} 11. Qxe3 {[%clk 0:02:17]}  d6 {[%clk 0:01:06]} 12. O-O-O {[%clk 0:02:16]}  Nc8 {[%clk 0:00:56]} 13. e5 {[%clk 0:01:53]}  d5 {[%clk 0:00:56]} 14. cxd5 {[%clk 0:01:46]}  exd5 {[%clk 0:00:56]} 15. Nxd5 {[%clk 0:01:29]}  Bxd5 {[%clk 0:00:48]} 16. Rxd5 {[%clk 0:01:30]}  Qe7 {[%clk 0:00:40]} 17. Qa3 {[%clk 0:01:05]}  Nc6 {[%clk 0:00:20]} 18. Qxe7+ {[%clk 0:00:56]}  Kxe7 {[%clk 0:00:20]} 19. Bc4 {[%clk 0:00:49]}  a6 {[%clk 0:00:20]} 20. Nc3 {[%clk 0:00:20]}  b5 {[%clk 0:00:20]} 21. Bb3 {[%clk 0:00:19]}  Nb6 {[%clk 0:00:20]} 22. Rd6 {[%clk 0:00:16]}  Nxe5 {[%clk 0:00:20]} 23. Rxb6 {[%clk 0:00:16]}  Nd3+ {[%clk 0:00:20]} 24. Kc2 {[%clk 0:00:16]}  Nf2 {[%clk 0:00:20]} 25. Re1+ {[%clk 0:00:14]}  Kd7 {[%clk 0:00:19]} 26. Rb7+ {[%clk 0:00:13]}  Kc6 {[%clk 0:00:19]} 27. Bd5+ {[%clk 0:00:13]}  Kd6 {[%clk 0:00:16]} 28. Re2 {[%clk 0:00:08]}  Rac8 {[%clk 0:00:15]} 29. Rxf2 {[%clk 0:00:07]}  Rhd8 {[%clk 0:00:15]} 30. Kb3 {[%clk 0:00:06]}  a5 {[%clk 0:00:14]} 31. Rd2 {[%clk 0:00:06]}  Kc5 {[%clk 0:00:13]} 32. Rxb5+ {[%clk 0:00:05]}  Kd6 {[%clk 0:00:13]} 33. Bb7+ {[%clk 0:00:06]}  Kc7 {[%clk 0:00:13]} 34. Bxc8 {[%clk 0:00:06]}  Rxc8 {[%clk 0:00:14]} 35. Rc5+ {[%clk 0:00:07]}  Kb7 {[%clk 0:00:08]} 36. Rxc8 {[%clk 0:00:08]}  Kxc8 {[%clk 0:00:09]} 37. Kc4 {[%clk 0:00:08]}  Kc7 {[%clk 0:00:05]} 38. Kc5 {[%clk 0:00:09]}  a4 {[%clk 0:00:02]} 39. Nb5+ {[%clk 0:00:10]}  Kb7 {[%clk 0:00:02]} 40. Rd7+ {[%clk 0:00:10]}  Ka6 {[%clk 0:00:03]} 41. Ra7# {[%clk 0:00:09]} 1-0


[Site "https://www.chess.com"]

[Event "Titled Tuesday Blitz February 28 Early 2023"]
[White "Clawitter, Craig"]
[Black "Cabezas Solano, David Alejandro"]
[WhiteFideId "2023105"]
[BlackFideId "6507522"]
[WhiteElo "2225"]
[BlackElo "2030"]
[Result "0-1"]
[Round "02"]
[TimeControl "180+2"]
[Date "2023.02.28"]
[WhiteClock "0:00:01"]
[BlackClock "0:00:05"]

1. e4 {[%clk 0:03:00]}  c5 {[%clk 0:02:59]} 2. Nf3 {[%clk 0:03:00]}  d6 {[%clk 0:02:59]} 3. d4 {[%clk 0:03:00]}  cxd4 {[%clk 0:03:00]} 4. Nxd4 {[%clk 0:03:01]}  Nf6 {[%clk 0:03:01]} 5. Nc3 {[%clk 0:03:02]}  a6 {[%clk 0:03:02]} 6. Be3 {[%clk 0:03:02]}  e5 {[%clk 0:02:59]} 7. Nb3 {[%clk 0:03:03]}  Be7 {[%clk 0:03:00]} 8. f3 {[%clk 0:03:03]}  h5 {[%clk 0:02:57]} 9. Be2 {[%clk 0:02:50]}  Be6 {[%clk 0:02:56]} 10. Nd5 {[%clk 0:02:43]}  Nxd5 {[%clk 0:02:46]} 11. exd5 {[%clk 0:02:44]}  Bf5 {[%clk 0:02:46]} 12. c4 {[%clk 0:02:43]}  Bh4+ {[%clk 0:02:44]} 13. g3 {[%clk 0:02:42]}  Bf6 {[%clk 0:02:41]} 14. Qd2 {[%clk 0:02:38]}  Nd7 {[%clk 0:02:40]} 15. O-O {[%clk 0:02:37]}  O-O {[%clk 0:02:28]} 16. Na5 {[%clk 0:02:30]}  Qc7 {[%clk 0:02:23]} 17. b4 {[%clk 0:02:29]}  e4 {[%clk 0:02:19]} 18. Rac1 {[%clk 0:02:20]}  Rfe8 {[%clk 0:02:09]} 19. fxe4 {[%clk 0:02:13]}  Bxe4 {[%clk 0:02:05]} 20. Bxh5 {[%clk 0:02:12]}  Ne5 {[%clk 0:01:55]} 21. Bd4 {[%clk 0:01:58]}  Bg6 {[%clk 0:01:09]} 22. Bxg6 {[%clk 0:01:21]}  fxg6 {[%clk 0:01:10]} 23. c5 {[%clk 0:01:11]}  Qf7 {[%clk 0:01:01]} 24. Bb2 {[%clk 0:00:31]}  Rad8 {[%clk 0:00:37]} 25. c6 {[%clk 0:00:27]}  bxc6 {[%clk 0:00:27]} 26. Nxc6 {[%clk 0:00:22]}  Rd7 {[%clk 0:00:20]} 27. Bxe5 {[%clk 0:00:15]}  dxe5 {[%clk 0:00:19]} 28. Rfd1 {[%clk 0:00:15]}  e4 {[%clk 0:00:16]} 29. Qe2 {[%clk 0:00:12]}  Rxd5 {[%clk 0:00:14]} 30. Qxa6 {[%clk 0:00:12]}  e3 {[%clk 0:00:09]} 31. Qe2 {[%clk 0:00:06]}  Rf5 {[%clk 0:00:08]} 32. Rd8 {[%clk 0:00:03]}  Rf2 {[%clk 0:00:05]} 33. Rxe8+ {[%clk 0:00:02]}  Qxe8 {[%clk 0:00:06]} 34. Qc4+ {[%clk 0:00:01]}  Kh7 {[%clk 0:00:05]} 0-1


[Site "https://www.chess.com"]

[Event "Titled Tuesday Blitz February 28 Early 2023"]
[White "EdmundPlayer"]
[Black "Buchenau, Frank"]
[BlackFideId "4604350"]
[WhiteElo "2221"]
[BlackElo "2157"]
[Result "0-1"]
[Round "02"]
[TimeControl "180+2"]
[Date "2023.02.28"]
[WhiteClock "0:00:01"]
[BlackClock "0:00:18"]

1. e4 {[%clk 0:02:58]}  e6 {[%clk 0:02:59]} 2. d4 {[%clk 0:02:57]}  d5 {[%clk 0:02:59]} 3. Nc3 {[%clk 0:02:57]}  Nf6 {[%clk 0:02:59]} 4. Bg5 {[%clk 0:02:53]}  dxe4 {[%clk 0:02:59]} 5. Nxe4 {[%clk 0:02:50]}  Be7 {[%clk 0:02:58]} 6. Bxf6 {[%clk 0:02:50]}  gxf6 {[%clk 0:02:58]} 7. Nf3 {[%clk 0:02:48]}  f5 {[%clk 0:02:58]} 8. Ng3 {[%clk 0:02:44]}  c5 {[%clk 0:02:58]} 9. Bb5+ {[%clk 0:02:28]}  Bd7 {[%clk 0:02:57]} 10. Bxd7+ {[%clk 0:02:27]}  Qxd7 {[%clk 0:02:56]} 11. d5 {[%clk 0:02:01]}  exd5 {[%clk 0:02:55]} 12. Qd3 {[%clk 0:02:01]}  Nc6 {[%clk 0:02:47]} 13. Qxf5 {[%clk 0:01:51]}  Qxf5 {[%clk 0:02:41]} 14. Nxf5 {[%clk 0:01:52]}  Bf6 {[%clk 0:02:28]} 15. Nd6+ {[%clk 0:01:48]}  Ke7 {[%clk 0:02:25]} 16. Nxb7 {[%clk 0:01:39]}  Bxb2 {[%clk 0:02:16]} 17. Rd1 {[%clk 0:01:38]}  Bc3+ {[%clk 0:02:15]} 18. Kf1 {[%clk 0:01:24]}  c4 {[%clk 0:01:54]} 19. g3 {[%clk 0:00:57]}  Rab8 {[%clk 0:01:48]} 20. Nc5 {[%clk 0:00:55]}  Rb2 {[%clk 0:01:30]} 21. Rxd5 {[%clk 0:00:49]}  Rd8 {[%clk 0:00:52]} 22. Rxd8 {[%clk 0:00:46]}  Kxd8 {[%clk 0:00:51]} 23. Ke2 {[%clk 0:00:32]}  Rxc2+ {[%clk 0:00:50]} 24. Ke3 {[%clk 0:00:32]}  Bb4 {[%clk 0:00:38]} 25. Rd1+ {[%clk 0:00:25]}  Ke7 {[%clk 0:00:38]} 26. Ne4 {[%clk 0:00:15]}  Ba5 {[%clk 0:00:35]} 27. a4 {[%clk 0:00:07]}  Bb6+ {[%clk 0:00:35]} 28. Kf4 {[%clk 0:00:07]}  Nb4 {[%clk 0:00:27]} 29. Ne5 {[%clk 0:00:06]}  f6 {[%clk 0:00:24]} 30. Ng4 {[%clk 0:00:02]}  Nd3+ {[%clk 0:00:21]} 31. Kf5 {[%clk 0:00:01]}  Ra2 {[%clk 0:00:18]} 0-1


[Site "https://www.chess.com"]

[Event "Titled Tuesday Blitz February 28 Early 2023"]
[White "Lesbekova, Assel"]
[Black "Goltseva, Ekaterina"]
[WhiteFideId "13713248"]
[BlackFideId "24173770"]
[WhiteElo "1799"]
[BlackElo "2200"]
[Result "0-1"]
[Round "02"]
[TimeControl "180+2"]
[Date "2023.02.28"]
[WhiteClock "0:00:20"]
[BlackClock "0:00:17"]

1. e4 {[%clk 0:02:55]}  e6 {[%clk 0:02:52]} 2. d4 {[%clk 0:02:54]}  d5 {[%clk 0:02:47]} 3. Bd3 {[%clk 0:02:53]}  dxe4 {[%clk 0:02:40]} 4. Bxe4 {[%clk 0:02:54]}  Nf6 {[%clk 0:02:41]} 5. Bf3 {[%clk 0:02:54]}  c5 {[%clk 0:02:42]} 6. Ne2 {[%clk 0:02:55]}  Nc6 {[%clk 0:02:29]} 7. Be3 {[%clk 0:02:53]}  Qb6 {[%clk 0:02:11]} 8. dxc5 {[%clk 0:02:45]}  Bxc5 {[%clk 0:02:09]} 9. Bxc5 {[%clk 0:02:44]}  Qxc5 {[%clk 0:02:07]} 10. c3 {[%clk 0:02:37]}  e5 {[%clk 0:02:03]} 11. Ng3 {[%clk 0:02:34]}  O-O {[%clk 0:02:00]} 12. O-O {[%clk 0:02:34]}  Rd8 {[%clk 0:01:51]} 13. Qe2 {[%clk 0:02:34]}  Be6 {[%clk 0:01:48]} 14. Nd2 {[%clk 0:02:33]}  Rab8 {[%clk 0:01:34]} 15. Nde4 {[%clk 0:02:30]}  Nxe4 {[%clk 0:01:32]} 16. Nxe4 {[%clk 0:02:31]}  Qe7 {[%clk 0:01:31]} 17. Qe3 {[%clk 0:02:31]}  f5 {[%clk 0:01:21]} 18. Nd2 {[%clk 0:02:13]}  e4 {[%clk 0:01:21]} 19. Bd1 {[%clk 0:02:09]}  Rd3 {[%clk 0:01:13]} 20. Qe2 {[%clk 0:02:03]}  Rbd8 {[%clk 0:01:13]} 21. Nb1 {[%clk 0:01:56]}  Bc4 {[%clk 0:01:11]} 22. Bb3 {[%clk 0:01:56]}  Ne5 {[%clk 0:01:08]} 23. Bxc4+ {[%clk 0:01:54]}  Nxc4 {[%clk 0:01:09]} 24. b3 {[%clk 0:01:54]}  Ne5 {[%clk 0:01:09]} 25. c4 {[%clk 0:01:51]}  Qf6 {[%clk 0:01:05]} 26. Na3 {[%clk 0:01:50]}  Nf3+ {[%clk 0:00:54]} 27. Kh1 {[%clk 0:01:41]}  Nd4 {[%clk 0:00:42]} 28. Qe1 {[%clk 0:01:35]}  Qh6 {[%clk 0:00:39]} 29. Qa5 {[%clk 0:01:27]}  Nc6 {[%clk 0:00:37]} 30. Qxf5 {[%clk 0:01:23]}  Re8 {[%clk 0:00:29]} 31. Rad1 {[%clk 0:01:13]}  Qd6 {[%clk 0:00:25]} 32. Rde1 {[%clk 0:01:05]}  Qxa3 {[%clk 0:00:24]} 33. Rxe4 {[%clk 0:01:01]}  Rxe4 {[%clk 0:00:24]} 34. Qxe4 {[%clk 0:01:01]}  Rd8 {[%clk 0:00:24]} 35. Qe6+ {[%clk 0:01:00]}  Kh8 {[%clk 0:00:24]} 36. Qf7 {[%clk 0:00:58]}  Qe7 {[%clk 0:00:23]} 37. Qf3 {[%clk 0:00:55]}  h6 {[%clk 0:00:23]} 38. h3 {[%clk 0:00:55]}  Nd4 {[%clk 0:00:23]} 39. Qc3 {[%clk 0:00:53]}  Nf5 {[%clk 0:00:22]} 40. Re1 {[%clk 0:00:52]}  Qg5 {[%clk 0:00:21]} 41. Qb4 {[%clk 0:00:43]}  b6 {[%clk 0:00:20]} 42. g3 {[%clk 0:00:37]}  Qd2 {[%clk 0:00:20]} 43. Re8+ {[%clk 0:00:37]}  Kh7 {[%clk 0:00:20]} 44. Qxd2 {[%clk 0:00:32]}  Rxd2 {[%clk 0:00:21]} 45. Kg2 {[%clk 0:00:31]}  Rxa2 {[%clk 0:00:21]} 46. Ra8 {[%clk 0:00:29]}  Nd4 {[%clk 0:00:21]} 47. b4 {[%clk 0:00:30]}  Ra4 {[%clk 0:00:20]} 48. b5 {[%clk 0:00:27]}  Rxc4 {[%clk 0:00:20]} 49. Rxa7 {[%clk 0:00:27]}  Nxb5 {[%clk 0:00:20]} 50. Rb7 {[%clk 0:00:27]}  Rc6 {[%clk 0:00:20]} 51. g4 {[%clk 0:00:27]}  Nd6 {[%clk 0:00:21]} 52. Rb8 {[%clk 0:00:26]}  b5 {[%clk 0:00:20]} 53. h4 {[%clk 0:00:26]}  Rc4 {[%clk 0:00:20]} 54. Kg3 {[%clk 0:00:25]}  b4 {[%clk 0:00:20]} 55. f3 {[%clk 0:00:26]}  Rd4 {[%clk 0:00:19]} 56. g5 {[%clk 0:00:26]}  hxg5 {[%clk 0:00:18]} 57. hxg5 {[%clk 0:00:26]}  Nf5+ {[%clk 0:00:18]} 58. Kg2 {[%clk 0:00:25]}  Kg6 {[%clk 0:00:18]} 59. Rb5 {[%clk 0:00:21]}  Kxg5 {[%clk 0:00:18]} 60. Kf2 {[%clk 0:00:21]}  Kf4 {[%clk 0:00:18]} 61. Rb7 {[%clk 0:00:20]}  g5 {[%clk 0:00:17]} 0-1


[Site "https://www.chess.com"]

[Event "Titled Tuesday Blitz February 28 Early 2023"]
[White "Sreyas Payyappat"]
[Black "Burke, John F"]
[WhiteFideId "46674969"]
[BlackFideId "2052970"]
[WhiteElo "2083"]
[BlackElo "2206"]
[Result "0-1"]
[Round "02"]
[TimeControl "180+2"]
[Date "2023.02.28"]
[WhiteClock "0:00:18"]
[BlackClock "0:01:31"]

1. e4 {[%clk 0:02:56]}  c5 {[%clk 0:02:59]} 2. Nf3 {[%clk 0:02:57]}  Nc6 {[%clk 0:02:58]} 3. d4 {[%clk 0:02:57]}  cxd4 {[%clk 0:02:58]} 4. Nxd4 {[%clk 0:02:58]}  e6 {[%clk 0:02:59]} 5. Nc3 {[%clk 0:02:58]}  Qc7 {[%clk 0:02:58]} 6. Be3 {[%clk 0:02:56]}  a6 {[%clk 0:02:58]} 7. Bd3 {[%clk 0:02:53]}  Nf6 {[%clk 0:02:58]} 8. O-O {[%clk 0:02:53]}  Bb4 {[%clk 0:02:55]} 9. f4 {[%clk 0:02:51]}  d6 {[%clk 0:02:52]} 10. Nce2 {[%clk 0:02:28]}  Ng4 {[%clk 0:02:47]} 11. Rf3 {[%clk 0:02:24]}  Nxe3 {[%clk 0:02:46]} 12. Rxe3 {[%clk 0:02:25]}  Bc5 {[%clk 0:02:46]} 13. c3 {[%clk 0:02:20]}  e5 {[%clk 0:02:46]} 14. fxe5 {[%clk 0:02:10]}  dxe5 {[%clk 0:02:45]} 15. Bc4 {[%clk 0:02:10]}  O-O {[%clk 0:02:33]} 16. Rg3 {[%clk 0:01:53]}  exd4 {[%clk 0:02:31]} 17. cxd4 {[%clk 0:01:54]}  Be7 {[%clk 0:02:15]} 18. Nc3 {[%clk 0:01:44]}  Nxd4 {[%clk 0:02:12]} 19. b3 {[%clk 0:01:09]}  Be6 {[%clk 0:02:01]} 20. Rc1 {[%clk 0:00:30]}  Qe5 {[%clk 0:01:31]} 21. Rd3 {[%clk 0:00:18]} 0-1


[Site "https://www.chess.com"]

[Event "Titled Tuesday Blitz February 28 Early 2023"]
[White "Mortazavi, Ali"]
[Black "Erece, Ece Alkim"]
[WhiteFideId "401323"]
[BlackFideId "6346006"]
[WhiteElo "2339"]
[BlackElo "1667"]
[Result "1-0"]
[Round "02"]
[TimeControl "180+2"]
[Date "2023.02.28"]
[WhiteClock "0:00:23"]
[BlackClock "0:00:04"]

1. e4 {[%clk 0:03:00]}  c5 {[%clk 0:02:58]} 2. Nc3 {[%clk 0:03:00]}  a6 {[%clk 0:02:57]} 3. g3 {[%clk 0:03:00]}  b5 {[%clk 0:02:58]} 4. Bg2 {[%clk 0:03:01]}  Bb7 {[%clk 0:02:57]} 5. d3 {[%clk 0:03:02]}  e6 {[%clk 0:02:56]} 6. Nf3 {[%clk 0:03:02]}  b4 {[%clk 0:02:55]} 7. Nb1 {[%clk 0:02:59]}  d5 {[%clk 0:02:55]} 8. Nbd2 {[%clk 0:03:00]}  Nf6 {[%clk 0:02:54]} 9. O-O {[%clk 0:02:58]}  dxe4 {[%clk 0:02:53]} 10. Ng5 {[%clk 0:02:58]}  Nc6 {[%clk 0:02:52]} 11. Ngxe4 {[%clk 0:02:58]}  Be7 {[%clk 0:02:51]} 12. a4 {[%clk 0:02:53]}  O-O {[%clk 0:02:39]} 13. Nc4 {[%clk 0:02:53]}  Rb8 {[%clk 0:02:34]} 14. a5 {[%clk 0:02:42]}  Nxe4 {[%clk 0:02:31]} 15. Bxe4 {[%clk 0:02:42]}  Nd4 {[%clk 0:02:11]} 16. Bxb7 {[%clk 0:02:32]}  Rxb7 {[%clk 0:02:12]} 17. Be3 {[%clk 0:02:32]}  Bf6 {[%clk 0:02:10]} 18. Bxd4 {[%clk 0:02:31]}  Bxd4 {[%clk 0:02:11]} 19. Qe2 {[%clk 0:02:28]}  Qf6 {[%clk 0:02:06]} 20. Rab1 {[%clk 0:02:23]}  Rd8 {[%clk 0:02:01]} 21. Kg2 {[%clk 0:02:19]}  Rbd7 {[%clk 0:01:51]} 22. Qf3 {[%clk 0:02:13]}  Qg6 {[%clk 0:01:32]} 23. Qc6 {[%clk 0:02:05]}  h5 {[%clk 0:01:23]} 24. h4 {[%clk 0:01:55]}  Qg4 {[%clk 0:01:03]} 25. Rbe1 {[%clk 0:01:23]}  g5 {[%clk 0:00:50]} 26. Re4 {[%clk 0:01:10]}  Qf5 {[%clk 0:00:49]} 27. hxg5 {[%clk 0:01:10]}  Kg7 {[%clk 0:00:34]} 28. Qxa6 {[%clk 0:00:51]}  Rh8 {[%clk 0:00:28]} 29. Qc6 {[%clk 0:00:51]}  Rd5 {[%clk 0:00:26]} 30. Rf4 {[%clk 0:00:36]}  Qxg5 {[%clk 0:00:25]} 31. Nd6 {[%clk 0:00:34]}  h4 {[%clk 0:00:14]} 32. Nxf7 {[%clk 0:00:31]}  hxg3 {[%clk 0:00:08]} 33. Nxg5 {[%clk 0:00:28]}  Rxg5 {[%clk 0:00:06]} 34. Qd7+ {[%clk 0:00:25]}  Kh6 {[%clk 0:00:04]} 35. Rh1+ {[%clk 0:00:23]} 1-0


[Site "https://www.chess.com"]

[Event "Titled Tuesday Blitz February 28 Early 2023"]
[White "Kochetov, Andrey"]
[Black "Kiseljova, Marya"]
[WhiteFideId "24130532"]
[BlackFideId "4155009"]
[WhiteElo "2444"]
[BlackElo "1807"]
[Result "1-0"]
[Round "02"]
[TimeControl "180+2"]
[Date "2023.02.28"]
[WhiteClock "0:00:04"]
[BlackClock "0:00:01"]

1. e4 {[%clk 0:03:00]}  c5 {[%clk 0:03:00]} 2. Nf3 {[%clk 0:03:00]}  Nc6 {[%clk 0:03:00]} 3. d4 {[%clk 0:03:00]}  cxd4 {[%clk 0:03:01]} 4. Nxd4 {[%clk 0:03:01]}  g6 {[%clk 0:03:01]} 5. c4 {[%clk 0:03:01]}  Bg7 {[%clk 0:03:01]} 6. Be3 {[%clk 0:03:02]}  Nf6 {[%clk 0:03:01]} 7. Nc3 {[%clk 0:03:01]}  d6 {[%clk 0:03:01]} 8. f3 {[%clk 0:02:59]}  O-O {[%clk 0:03:01]} 9. Nc2 {[%clk 0:02:57]}  Be6 {[%clk 0:02:55]} 10. Be2 {[%clk 0:02:54]}  Nd7 {[%clk 0:02:48]} 11. Qd2 {[%clk 0:02:53]}  a5 {[%clk 0:02:29]} 12. O-O {[%clk 0:02:47]}  Nc5 {[%clk 0:02:22]} 13. b3 {[%clk 0:02:43]}  Nb4 {[%clk 0:02:08]} 14. Rfd1 {[%clk 0:02:06]}  Nxc2 {[%clk 0:02:06]} 15. Qxc2 {[%clk 0:02:06]}  Qb6 {[%clk 0:01:58]} 16. Rab1 {[%clk 0:01:53]}  Qb4 {[%clk 0:01:48]} 17. Bd2 {[%clk 0:01:45]}  Qb6 {[%clk 0:01:38]} 18. Kh1 {[%clk 0:01:36]}  Na6 {[%clk 0:01:37]} 19. a3 {[%clk 0:01:31]}  Rfc8 {[%clk 0:01:23]} 20. Bf1 {[%clk 0:01:09]}  Qf2 {[%clk 0:01:10]} 21. Qc1 {[%clk 0:00:59]}  Bd4 {[%clk 0:00:53]} 22. Bd3 {[%clk 0:00:50]}  Nc5 {[%clk 0:00:24]} 23. Qc2 {[%clk 0:00:27]}  Qh4 {[%clk 0:00:11]} 24. Be1 {[%clk 0:00:21]}  Qh6 {[%clk 0:00:10]} 25. Bf2 {[%clk 0:00:19]}  Be5 {[%clk 0:00:10]} 26. g3 {[%clk 0:00:19]}  Nxd3 {[%clk 0:00:08]} 27. Rxd3 {[%clk 0:00:18]}  Rc7 {[%clk 0:00:07]} 28. f4 {[%clk 0:00:14]}  Bg7 {[%clk 0:00:05]} 29. Qd2 {[%clk 0:00:13]}  Bg4 {[%clk 0:00:05]} 30. Nb5 {[%clk 0:00:12]}  Rcc8 {[%clk 0:00:04]} 31. Bd4 {[%clk 0:00:09]}  Qh5 {[%clk 0:00:03]} 32. Bxg7 {[%clk 0:00:07]}  Kxg7 {[%clk 0:00:04]} 33. Kg1 {[%clk 0:00:08]}  b6 {[%clk 0:00:02]} 34. Nc3 {[%clk 0:00:07]}  a4 {[%clk 0:00:01]} 35. Nxa4 {[%clk 0:00:05]}  Rxa4 {[%clk 0:00:01]} 36. bxa4 {[%clk 0:00:06]}  Rxc4 {[%clk 0:00:01]} 37. Re1 {[%clk 0:00:05]}  Qc5+ {[%clk 0:00:02]} 38. Kh1 {[%clk 0:00:04]}  Bh3 {[%clk 0:00:02]} 39. Qe2 {[%clk 0:00:04]}  Rc2 {[%clk 0:00:02]} 40. Rd2 {[%clk 0:00:04]}  Rc3 {[%clk 0:00:01]} 41. Red1 {[%clk 0:00:05]}  Rxa3 {[%clk 0:00:01]} 42. Rd4 {[%clk 0:00:04]} 1-0


[Site "https://www.chess.com"]

[Event "Titled Tuesday Blitz February 28 Early 2023"]
[White "Marin Ramirez, Gerardo"]
[Black "Rosenberg, Evan S"]
[WhiteFideId "3901068"]
[BlackFideId "2019299"]
[WhiteElo "1997"]
[BlackElo "2443"]
[Result "0-1"]
[Round "02"]
[TimeControl "180+2"]
[Date "2023.02.28"]
[WhiteClock "0:00:03"]
[BlackClock "0:00:41"]

1. d4 {[%clk 0:03:00]}  d5 {[%clk 0:02:59]} 2. Nf3 {[%clk 0:03:01]}  Bf5 {[%clk 0:02:58]} 3. c4 {[%clk 0:03:00]}  e6 {[%clk 0:02:58]} 4. Qb3 {[%clk 0:02:57]}  Nc6 {[%clk 0:02:57]} 5. a3 {[%clk 0:02:50]}  Na5 {[%clk 0:02:56]} 6. Qa4+ {[%clk 0:02:47]}  c6 {[%clk 0:02:56]} 7. Nbd2 {[%clk 0:02:26]}  h6 {[%clk 0:02:40]} 8. c5 {[%clk 0:02:19]}  Nf6 {[%clk 0:02:34]} 9. e3 {[%clk 0:02:14]}  b5 {[%clk 0:02:15]} 10. cxb6 {[%clk 0:02:01]}  axb6 {[%clk 0:02:15]} 11. b4 {[%clk 0:01:46]}  b5 {[%clk 0:02:02]} 12. Bxb5 {[%clk 0:01:44]}  cxb5 {[%clk 0:02:02]} 13. Qxb5+ {[%clk 0:01:44]}  Qd7 {[%clk 0:01:37]} 14. Qxd7+ {[%clk 0:01:42]}  Nxd7 {[%clk 0:01:38]} 15. bxa5 {[%clk 0:01:42]}  Rxa5 {[%clk 0:01:39]} 16. O-O {[%clk 0:01:41]}  Bd6 {[%clk 0:01:36]} 17. a4 {[%clk 0:01:34]}  Ke7 {[%clk 0:01:35]} 18. Nb3 {[%clk 0:01:33]}  Ra6 {[%clk 0:01:29]} 19. Ba3 {[%clk 0:01:31]}  Rb8 {[%clk 0:01:21]} 20. Bxd6+ {[%clk 0:01:30]}  Kxd6 {[%clk 0:01:21]} 21. Nbd2 {[%clk 0:01:16]}  Rb2 {[%clk 0:01:14]} 22. h3 {[%clk 0:01:07]}  f6 {[%clk 0:01:07]} 23. Rfc1 {[%clk 0:01:04]}  Nb6 {[%clk 0:01:06]} 24. a5 {[%clk 0:01:02]}  Nd7 {[%clk 0:01:03]} 25. Ra3 {[%clk 0:00:26]}  Rb5 {[%clk 0:01:00]} 26. Rca1 {[%clk 0:00:26]}  Nb8 {[%clk 0:00:58]} 27. Nb3 {[%clk 0:00:21]}  Nc6 {[%clk 0:00:58]} 28. Nc5 {[%clk 0:00:19]}  Ra7 {[%clk 0:00:56]} 29. a6 {[%clk 0:00:19]}  Rb4 {[%clk 0:00:54]} 30. Nd2 {[%clk 0:00:12]}  Rb2 {[%clk 0:00:49]} 31. Ndb3 {[%clk 0:00:10]}  Nb4 {[%clk 0:00:48]} 32. Ra4 {[%clk 0:00:03]}  Nd3 {[%clk 0:00:41]} 0-1


[Site "https://www.chess.com"]